Workbook

Sheet Intro
A1: 0 | C1: Presentation of data from 6-month cash flows | P1: Do you need free browsing the program file? | T1: Exchange Rates
C2: Level 0 ß | D2: Level 3 | G2: GLOBAL STEEL D.O.O. | T2: 1 | U2: 1.96 | V2: =V3/T3 -> 1.204819277
C3: SALES | K3: Represented by local outsourcing east electric company Ltd, Bulgaria | T3: 0.83 | V3: 1
C4: Homes | D4: =ROUND(Q23,-2) -> 0 | E4: =D3*$U$2 -> 0 | G4: Prefabricated Buildings and Halls steel structures
C5: Halls | D5: =ROUND(Q24,-2) -> 0 | E5: =D5*$U$2 -> 0
C6: TOTAL: | D6: =ROUND(Q25,-2) -> 0 | E6: =D6*$U$2 -> 0 | G6: primarily engaged in the production and installation of steel structures | P6: =TODAY() -> 2022-08-18
G7: ←Level 5 → | I7: Zoom↓ | J7: Risk assessment and management. Go to Bayes Theorem
A8: Click the picture  to increase it | C8: ` | D8: =SUM(D9:D10) ->  | E8: =SUM(E9:E10) ->  | G8: ←Level 4 → | J8: Sensitivity analysis | M8: ←Zoom 100
C9: COSTS, Total | D9: =SUM(D10:D11) ->  | E9: =SUM(E10:E11) ->  | G9: ←Level 3 → | I9: Zoom 152 | J9: Decision analysis, profitability
C10: Variable costs | E10: =D10*$U$2 ->  | G10: ←Level 2 | J10: Cash-flow Pro-forma Budgeting
C11: Fixed costs | D11: 0 | E11: =D11*$U$2 -> 0 | G11: ←Level 1 | I11: → | J11: Capital Goods and Services | N11: Select Zoom 100 if Resolution of your display is lesser than 1600 x 900.
C12: Revenues /Costs | D12: =ROUND(D4-D9,-3) ->  | E12: =ROUND(E4-E9,-3) ->  | G12: ←Level 0 | I12: Basic data, invariant for this Project
A13: By-products | C13: Marketing / RM | D13: 0 | E13: =D13*$U$2 -> 0
A14: This information shows all the time: ① Are the project data correct, | H14: Level Go dowm | K14: Decision Analysis | N14: Online Cash Flow Control
A15: ② Is there good management, ③ the risk assessment and management | L15: Demand is rising | N15: All time during the loan life
A16: ↑This sector presents Level 3 data for comparison with the base information of Level 0 | F16: Click the image to reveal the final results | J16: 1 year | L16: Financial modeling ↗
B17: Overall probability of a bad event - | J17: Built-up materials | M17: p.Yr
B18: lost profits due to lack of risk assessment. | J18: Homrs | L18: =M18/M20 -> 0.3103448276 | M18: =Q34 -> 36360
E19: Revenue increase due to beter distribution, TOTAL: | F19: 7-Yr Option | J19: Halls | L19: =100%-L18 -> 0.6896551724 | M19: =Q35 -> 80800
B20: The greenhouse complex | E20: Loans A + B - D Investment, TOTAL: | M20: =M18+M19 -> 117160 | N20: Feedback from Level 5 to Level 0
A21: Creditor  | B21: Project Finance
A22: Export Credit Insurance | C22: Financial Modeling | F22: DDP (Delivered Duty Paid)
A23: Marketing | C23: Business Plan East Electric Company | F23: The seller is responsible for arranging carriage and delivering the goods at the named place, cleared for import and all applicable taxes and duties paid (e.g. VAT, GST)
A24: Insurer | C24: Risk Assessment Brothers Global Ltd. | F24: In this country the import clearance procedures are not complex and bureaucratic, but In case there is a problem, the user is obliged to solve it.
D25: Solar power supplier - Own division
D26: Infrastructure. Solar power supplier | M26: Intro!L35*Intro!R35+Intro!K35*3*R35
A27: Material products: | D27: Intellectual products:
A28: Buildings ← sq. m / | D28: ← Risk assessment & management
A29: Halls ← sq. m / | D29: ← Online cash-flow control system | M29: ¯ Basic unchangeable values for transfer to upper level 1 Ö
A30: By-products of buildings & halls ← | D30: ← History of sales and costs | H30: FINANCIAL STARTUP DATA
A31: Numbers newly introduced
A32: The attached color and image visualizations in all worksheets are designed for faster and easier perception of figures and formulas, as well as for their long-term memorization when financing the project. | M32: 20 | Q32: Production | R32: Price
F33: MATERIALS | G33: 2001-UBM-240: | H33: Income - Sales: | I33: Built-up area | K33: p.Mo ↓ | L33: Jan, Feb, Mar | M33: Apr, May, Jun, Jul, Aug, Sep | P33: Oct, Nov, Dec | Q33: per Yr | R33: Price | S33: ↓ Sales
F34: Loan - for 3 Mos: | G34: 2500000 | H34: Homes construction | I34: 180 | K34: =I34*M32 -> 3600 | L34: =K34*3-K34*3*20% -> 8640 | M34: =K34*5 -> 18000 | P34: =K34*3-K34*3*10% -> 9720 | Q34: =L34+M34+P34 -> 36360 | R34: 140 | S34: =Q34*R34 -> 5090400
F35: Homes | G35: 2000-UBM-120: | H35: Halls construction | I35: 400 | K35: =I35*M32 -> 8000 | L35: =K35*3-K35*3*20% -> 19200 | M35: =K35*5 -> 40000 | P35: =K35*3-K35*3*10% -> 21600 | Q35: =L35+M35+P35 -> 80800 | R35: 120 | S35: =Q35*R35 -> 9696000
F36: =S39 -> 756000 | G36: 1187500 | H36: Homes - Sales 1st half Yr: | I36: =(L34+K34*3)*R34 -> 2721600 | K36: 2nd half Yr: | L36: =(K34*3+P34)*R34 -> 2872800 | P36: 1 Yr TOTAL: | Q36: =Q34+Q35 -> 117160 | S36: =S34+S35 -> 14786400
F37: Halls | G37: Flat Panel: | H37: Halls - Sales 1st half Yr: | I37: =(L35+K35*3)*R35 -> 5184000 | K37: 2nd half Yr: | L37: =(K35*3+P35)*R35 -> 5472000
F38: =S41 -> 1200000 | G38: 687500 | H38: Cost - Materials: | I38: =I33 -> Built-up area | K38: p.Mo ↓ | L38: 3 | R38: Price | S38: ↓ Buy
F39: Import - Export | G39: For polyuretan: | H39: Homes materials 1m2 | I39: =I34 -> 180 | K39: =I39*M32 -> 3600 | L39: =K39*L38 -> 10800 | R39: 70 | S39: =L39*R39 -> 756000
F40: TOTAL: | G40: 312500 | H40: 33.5 | I40: =H40*I39/1000 -> 6.03 | K40: =I40*M32 -> 120.6 | L40: =K40*L38 -> 361.8
F41: =F36+F38 -> 1956000 | G41: Fire Protection: | H41: Halls material 1m2 | I41: =I35 -> 400 | K41: =I41*M32 -> 8000 | L41: =K41*L38 -> 24000 | R41: 50 | S41: =L41*R41 -> 1200000
F42: TECHNOLOGY | G42: 437500 | H42: 46 | I42: =H42*I41/1000 -> 18.4 | K42: =I42*M32 -> 368 | L42: =K42*L38 -> 1104 | R42: 1 Yr TOTAL: | S42: =S39+S41 -> 1956000
A43: For Developer's use only | F43: STARTUP | G43: =G34+G36+G38+G40+G42 -> 5125000 | I43: =H40*K39 -> 120600
A44: For Developer's use only | F44: SUPPORT | G44: Homes and Halls | H44: ON THE TOP OF THE SECTIONS | K44: ← | L44: → | R44: ↗
F45: =G46*F46 -> 1274580 | G45: < pictures > | H45: These characters are on base data and are links to Level 1 | R45: ↗
A46: Training - disassembly and assembly of machines for transport and operation: | F46: 0.18 | G46: =F41+G43 -> 7081000 | H46: Data entered from external sources. | R46: ↗
D47: MATERIALS and supply SubTOTAL: | G47: =G46*F46 -> 1274580 | K47: â Basic unchangeable values for transfer to upper | Q47: Level 1 ↗ | R47: Duty | S47: VAT
A48: INFLOW DATA WORKING PANEL FOR THE BASE | D48: Level 0 | F48: Loan amount TOTAL: | G48: =G46+G47 -> 8355580 | H48: Solar Energy | I48: Design data | K48: STAFF - Start Salaries | P48: Imp. values + LOCAL COSTS | R48: 0.025 | S48: 0.2
K49: Structure and salaries of employees | P49: Import Duty: | Q49: Machines | R49: =G43*R48 -> 128125 | S49: =G43*S48 -> 1025000
L50: POSITION | Q50: Materials | R50: =F41*R48 -> 48900 | S50: =F41*S48 -> 391200
K51: Nr. | L51: ADMINISTRATION | N51: $ | O51: $ p.Mo | P51: Materials | Q51: Sub TOTAL(s) | R51: =R49+R50 -> 177025 | S51: =S49+S50 -> 1416200
K52: 1 | L52: CEO | N52: 3000 | O52: =K52*N52 -> 3000 | P52: Local country customs transport and storage: | S52: 30000
K53: 1 | L53: Technical director | N53: 2000 | O53: =K53*N53 -> 2000 | P53: Local administration Permits & Reconstruction: | S53: 50000
K54: 1 | L54: Secretary | N54: 1000 | O54: =K54*N54 -> 1000 | P54: Local country costs TOTAL: | R54: =R51+S54 -> 257025 | S54: =S52+S53 -> 80000
K55: 2 | L55: Bookkeeper | N55: 2000 | O55: 4000 | P55: Loan application - | R55: Exporter / Developer
K56: 3 | L56: Other administration | N56: 700 | O56: 2100 | P56: 1. Data input analysis and legal confirmation by Exporter
L57: SERVICE STAFF | P57: and Fin. modeling developer | R57: 12000
K58: 4 | L58: Designer (architects) | N58: 1500 | O58: 6000 | P58: 2. Bus Plan, Fin. Modeling | R58: 120000
K59: 2 | L59: Engineers in production | N59: 1500 | O59: 3000 | P59: 3. Software usage fee for OCFCS | R59: 16000
K60: 2 | L60: Technological engineers | N60: 2000 | O60: 4000 | P60: 4 .Risk Assessment - software | R60: 45000
K61: 20 | L61: Production workers | N61: 800 | O61: 16000 | P61: Sub TOTAL: | R61: =R57+R58+R59+R60 -> 193000 | S61: Other: | T61: Go to
K62: 20 | L62: Construction workers | N62: 1000 | O62: 20000 | P62: Constructive permits, - electricity, water, etc. | S62: 15000 | T62: Level
B63: Solar energy supplier for own use - 2nd stage of this project | K63: =K52+K53+K54+K55+K56+K58+K59+K60+K61+K62 -> 56 | L63: TOTAL number of emploees | O63: =O52+O53+O54+O55+O56+O58+O59+O60+O61+O62 -> 61100 | P63: Infrastructure - hedge, water & power supply | S63: 35000 | T63: â
H64: Financial crises and real estate | N64: 0.3 | P64: Other expenses - land, video control, etc. | S64: 10000
P65: ① TOTAL: | R65: =R54+S51+R61+S62+S63+S64 -> 1926225 | S65: Local
P66: Equipment Imp. ↓ | R66: =G48 -> 8355580 | S66: Country
A67: The color visualizations used in all worksheets are intended for faster and easier perception of figures and formulas, as well as for their long-term memorization in the financing of the project and its management. | S67: Expences
G68: 88 | H68: COSTS of system for photovoltaic modules | L68: 155 | M68: Generation | N68: 0.3 | O68: €/ha | P68: $ | S68: =R65/R66 -> 0.2305315729
A69: Spain yiels T + C: | B69: Average price ↓ in Holland | H69: Tpansport → | I69: → | J69: 20 | K69: 350 | L69: =K69/J69/1000 -> 0.0175 | M69: .+ Transport | N69: This project | O69: =N71/$A$91 -> 0
A70: Kg | B70: Kg/m2 | C70: € /kg | H70: Panels → | I70: .↓Mo | J70: p.Yr | K70: =L68/1000 -> 0.155 | L70: Transp. p.ha | M70: €/Mo/ha | N70: € p.↓Mo | O70: 0
A71: 264768 | B71: =A71/$A$92 -> 2 | C71: 1.21 | I71: 557463 | J71: =I71/$A$91 -> 42109.54496 | K71: =J71*$K$70*(1+$N$68) -> 8485.073309 | L71: =K71*$L$69 -> 148.4887829 | M71: =K71+L71 -> 8633.562092 | N71: =M71*$T$48 -> 0 | O71: 0
A72: 728112 | B72: =A72/$A$92 -> 5.5 | C72: 2.83 | I72: 523149 | J72: =I72/$A$91 -> 39517.53988 | K72: =J72*$K$70*(1+$N$68) -> 7962.784287 | L72: 139.348725 | M72: =K72+L72 -> 8102.133012 | N72: =M72*$T$48 -> 0 | O72: 0
A73: 1125264 | B73: 8.5 | C73: 1.85 | I73: 444513 | J73: =I73/$A$91 -> 33577.54714 | K73: =J73*$K$70*(1+$N$68) -> 6765.875748 | L73: 118.4028256 | M73: 6884.278573 | N73: 0 | O73: 0
A74: 1191456 | B74: 9 | C74: 1.33 | I74: 340047 | J74: =I74/$A$91 -> 25686.41226 | K74: =J74*$K$70 -> 3981.3939 | L74: 69.67439324 | M74: 4051.068293 | N74: 0 | O74: 0
A75: 1059072 | B75: 8 | C75: 1.01 | I75: 156019 | J75: 11785.3366 | K75: =J75*$K$70*(1+$N$68/1.5) -> 2192.072607 | L75: 38.36127062 | M75: 2230.433878 | N75: 0 | O75: 0
A76: 0 | B76: =A76/$A$92 -> 0 | C76: 0.63 | I76: 0 | J76: 0 | K76: =J76*$K$70*(1+$N$68) -> 0 | L76: 0 | M76: 0 | N76: 0 | O76: 0
A77: 369152 | B77: 2.788494078 | C77: 0.53 | I77: 0 | J77: 0 | K77: =J77*$K$70*(1+$N$68) -> 0 | L77: 0 | M77: 0 | N77: 0 | O77: 0
A78: 595728 | B78: 4.5 | C78: 0.51 | I78: 0 | J78: 0 | K78: =J78*$K$70*(1+$N$68) -> 0 | L78: 0 | M78: 0 | N78: 0
A79: 728112 | B79: 5.5 | C79: 0.63 | I79: 0 | J79: 0 | K79: =J79*$K$70*(1+$N$68) -> 0 | L79: 0 | M79: 0 | N79: 0 | O79: 0
A80: 369152 | B80: 2.788494078 | C80: 1.01 | I80: 261574 | J80: 19758.73217 | K80: =J80*$K$70*(1+$N$68/3) -> 3368.863836 | L80: 58.95511712 | M80: =#REF!+L80 ->  | O80: 0
A81: 132384 | B81: 1 | C81: 0.95 | I81: 392361 | J81: 29638.09826 | K81: =J81*$K$70*(1+$N$68) -> 5972.076799 | L81: 104.511344 | M81: =K81+L81 -> 6076.588143 | N81: 0 | O81: =SUM(O69:O80) -> 
A82: 264768 | B82: 2 | C82: 1.26 | I82: 392361 | J82: 29638.09826 | K82: =J82*$K$70*(1+$N$68) -> 5972.076799 | L82: 104.511344 | M82: =K82+L82 -> 6076.588143 | N82: 0 | P82: Area, ha | Q82: 2 | R82: 4 | S82: 5
A83: =SUM(A71:A82) -> 6827968 | B83: =SUM(B71:B82) -> 51.57698816 | C83: ↙ OFFERS ↘ | I83: 444676 | J83: =SUM(J70:J82) -> 231711.3095 | K83: =SUM(K70:K82) -> 44700.37228 | L83: =SUM(L71:L82) -> 782.2538025 | M83: =SUM(M71:M82) ->  | N83: =SUM(N71:N82) ->  | P83: Price: | R83: 112 | S83: 40 | T83: 35 | U83: 33
A84: USA | C84: USA ②
A85: =364.8*160 -> 58368
A86: 70080
A87: =2*9.6*120+1*9.6*170 -> 3936
A88: =SUM(A85:A87) -> 132384
A89: =20*135 -> 2700 | C89: 3744
A90: =10*225.5 -> 2255 | C90: 2496
A91: =A88/10000 -> 13.2384 | C91: =51456/10000 -> 5.1456
A92: =A91*10000 -> 132384 | C92: =SUM(C85:C90) -> 6240
A93: 2286699 | C93: 478922
A94: 6800
A95: 42000 | E95: Rent of a plot for a photovoltaic plant
A96: 50000
A97: =ROUND((SUM(A93:A96)),-1) -> 2385500 | C97: =SUM(A94:A96)+C93 -> 577722
A98: =A93/A91 -> 172732.2788 | C98: =C97/C91 -> 112274.9534

Sheet Cap.Goods
B3: ↑ | C3: Level ① | E3: Capital Goods and Services
B4: To Level 0 | L4: =BUDGET!C14 -> Date: | O4: =BUDGET!E14 -> 2023-06-30
B5: A | D5: CAPITAL INVESTMENT EXPORT / IMPORT | F5: Loan "A" | I5: PROJECT FINANCE | K5: D | L5: OWN FUNDS Loan "D" | N5: Loan "A" + VAT + "D" | P5: TOTAL
B6: =IF(#REF!<=50%,"","M") ->  | H6: Advance | I6: Balance | L6: =M6 -> 0 | M6: 0 | N6: Advance | O6: Balance | P6: Value | R6: →
D7: Building Machines for self-supporting facilities (DDP) production of self-supporting facilities production of self-supporting facilities, DDP | F7: =Intro!G43 -> 5125000 | I7: =(100%-#REF!)*F7-(100%-#REF!)*F7*$M$6 ->  | L7: =#REF!*F7*$M$6 ->  | M7: =(100%-#REF!)*F7*$M$6 ->  | N7: =H7+L7 ->  | O7: =I7+M7 ->  | P7: =N7+O7 -> 
D8: Construction materials (for 3 Mo) | F8: =Intro!F41 -> 1956000 | H8: loan+LCs | I8: =(100%-C8)*F8-(100%-C8)*F8*$M$6 -> 1956000 | L8: =C8*F8*$M$6 -> 0 | M8: =(100%-C8)*F8*$M$6 -> 0 | N8: =H8+L8 -> 0 | O8: =I8+M8 -> 1956000 | P8: =N8+O8 -> 1956000
C9: Startup support | E9: TOTAL: | F9: =Intro!G46 -> 7081000
C10: =Intro!F46 -> 0.18 | D10: Job training - disassembly and assembly of machines: | F10: =Intro!F45 -> 1274580
E11: TOTAL: | F11: =Intro!G48 -> 8355580 | H11: =Intro!#REF! ->  | I11: =(100%-#REF!)*F11-(100%-#REF!)*F11*$M$6 ->  | L11: =#REF!*F11*$M$6 ->  | M11: =(100%-#REF!)*F11*$M$6 ->  | N11: =H11+L11 ->  | O11: =I11+M11 ->  | P11: =N11+O11 -> 
C12: Next stage of the PROJECT development is SOLAR ENERGY GENERATION | F12: =Intro!H48 -> Solar Energy
B14: B | D14: LOCAL COUNTRY COSTS  | F14: Loan "B" | K14: D | L14: OWN FUNDS Loan "D" | N14: Loan "A" + VAT + "D" | P14: TOTAL
C15: Advance, % | F15: Net Price | G15: Import Duty | H15: Advance | I15: Balance | L15: =M15 -> 0 | M15: =M6 -> 0 | N15: Advance | O15: Total | P15: Value | R15: →
C16: 2.5% Duty: | D16: Import Duty - Building Machines: | F16: =Intro!R51 -> 177025
A17: Ø | D17: Local country customs transport and storage: | F17: =Intro!S52 -> 30000
A18: Ø | D18: Local administration - Permits & Reconstruction: | F18: =Intro!S53 -> 50000 | H18: =C17*F17-C17*F17*$M$6 -> 0 | I18: =(100%-C17)*F17-(100%-C17)*F17*$M$6 -> 30000 | L18: =C17*F17*$M$15 -> 0 | M18: =(100%-C17)*F17*$M$6 -> 0 | N18: =H18+L18 -> 0 | O18: =I18+M18 -> 30000 | P18: =N18+O18 -> 30000
E19: Sub TOTAL: | F19: =Intro!R54 -> 257025
C20: 20% VAT: | D20: (Refundable) | F20: =Intro!S51 -> 1416200 | L20: Financial suport of Exporter for 15% Buyer's own funds
C21: Cap. Investment: | D21: Constructive drawings, permits - electricity, water, etc. | F21: =Intro!S62 -> 15000
D22: Terrain, infrastructure - hedge, water & power supply | F22: =Intro!S63 -> 35000
D23: Other unforeseen expenses - land, video control, etc. | F23: =Intro!S64 -> 10000
E24: Sub TOTAL: | F24: =F21+F22+F23 -> 60000
C25: Other: | D25: Loan application
C26: Fin. modeling: | D26: 1. All data input analysis and legal confirmation | F26: =Intro!R57 -> 12000 | H26: =C18*F18-C18*F18*$M$6 -> 0 | I26: =(100%-C18)*F18-(100%-C18)*F18*$M$6 -> 50000 | L26: =C18*F18*$M$15 -> 0 | M26: =(100%-C18)*F18*$M$6 -> 0 | N26: =H26+L26 -> 0 | O26: =I26+M26 -> 50000 | P26: =N26+O26 -> 50000
D27: 2. Business Plan, Financial modeling | F27: =Intro!R58 -> 120000
D28: 3. Software usage fee for OCFCS and sensitivity analysis | F28: =Intro!R59 -> 16000
A29: Ø | D29: 4. Financial risk assessment and management | F29: =Intro!R60 -> 45000 | H29: =#REF!*F26-#REF!*F26*$M$6 ->  | I29: =SUM(I30:I31) ->  | L29: =#REF!*F26*$M$15 ->  | M29: =(100%-#REF!)*F26*$M$6 ->  | N29: =H29+L29 ->  | O29: =#REF!+M29 ->  | P29: =SUM(P30:P31) -> 
C30: Local costs < 30% | E30: Sub TOTAL: | F30: =Intro!R61 -> 193000 | I30: =(100%-#REF!)*#REF!-(100%-#REF!)*#REF!*$M$6 ->  | P30: =#REF!+#REF! -> 
C31: =IF(F32<=30%,"C","N") -> C | E31: TOTAL: | F31: =Intro!R65 -> 1926225 | H31: =SUM(#REF!) ->  | I31: =(100%-C32)*F29-(100%-C32)*F29*$M$6 -> 45000 | L31: =SUM(#REF!) ->  | M31: =SUM(#REF!) ->  | N31: =SUM(#REF!) ->  | O31: =SUM(#REF!) ->  | P31: =#REF!+#REF! -> 
E32: Local Country Expences: | F32: =Intro!S68 -> 0.2305315729
C33: Local costs should not exceed 30% of the loan amount. | F33: =F19+F20+F24+F30 -> 1926225 | H33: =#REF!+H31 ->  | I33: =#REF!+I29 ->  | L33: =#REF!+L31 ->  | M33: =#REF!+M31 ->  | N33: =#REF!+N31 ->  | O33: =#REF!+O31 ->  | P33: =#REF!+P29 -> 
F35: =Intro!S68 -> 0.2305315729 | H35: =#REF!+H33 ->  | I35: =#REF!+I33 ->  | K35: D | L35: =#REF!+L33 ->  | M35: =#REF!+M33 ->  | N35: WORKING CAPITAL ↓ | P35: =#REF!+P33 -> 
L36: Loan "D" | M36: =L35+M35 ->  | O36: Optional: | P36: 20000
D37: INSURANCE | E37: DEPRECIATION OF ASSETS | L37: 0.055 | P37: =SUM(P35:P36) -> 
A38: Ø | C38: 0.16 | D38: =F7 -> 5125000 | E38: Mashines / Annual profit tax reduction: | F38: =D38*C38 -> 820000
C39: 0.25 | D39: Motor car / Truck(s)
C40: 0.04 | D40: LOAN INTEREST RATE | F40: =Intro!G46*'Cap.Goods'!C40 -> 283240
C41: Cell → Data entered from external sources
A42: Ø | C42: Cell → These - characters are on base data and are links to Level 1 | D42: characters are on base data and are links to Level 1
A43: Ø | D43: This icons or are for Internet sources
A44: Ø | C44: Various fonts | D44: and background colors represent similar group data resources

Sheet BUDGET
A1: Business Plan | C1: 1yr Sales: | D1: 31-Jen | E1: 2022-02-28 | F1: 2022-03-31 | G1: 2016-04-30 | H1: 2016-05-31 | I1: 2015-06-30 | J1: 2015-07-31 | K1: August | L1: 2015-09-30 | M1: 2015-10-31 | N1: 2015-11-30 | O1: 2015-12-31 | P1: $ TOTAL | Q1: 6 Mo: Jan - Jun | R1: 6 Mo: Jul - Dec
A2: Level 1 | B2: ß Homes: | C2: Homes p.Mo | D2: =Intro!L34/3*Intro!R34 -> 403200 | E2: =Intro!L34/3*Intro!R34 -> 403200 | F2: =Intro!L34/3*Intro!R34 -> 403200 | G2: =Intro!K34*Intro!R34 -> 504000 | H2: =Intro!K34*Intro!R34 -> 504000 | I2: =Intro!K34*Intro!R34 -> 504000 | J2: =Intro!K34*Intro!R34 -> 504000 | K2: 0 | L2: =Intro!K34*Intro!R34 -> 504000 | M2: =Intro!P34/3*Intro!R34 -> 453600 | N2: =Intro!P34/3*Intro!R34 -> 453600 | O2: =Intro!P34/3*Intro!R34 -> 453600 | P2: =SUM(D2:O2) -> 5090400 | Q2: =SUM(D2:I2) -> 2721600 | R2: =SUM(J2:O2) -> 2368800 | T2: =Q2+R2 -> 5090400
A3: ← Back | B3: Halls: | C3: Halls p.Mo | D3: =Intro!L35/3*Intro!R35 -> 768000 | E3: =Intro!L35/3*Intro!R35 -> 768000 | F3: =Intro!L35/3*Intro!R35 -> 768000 | G3: =Intro!K35*Intro!R35 -> 960000 | H3: =Intro!K35*Intro!R35 -> 960000 | I3: =Intro!K35*Intro!R35 -> 960000 | J3: =Intro!K35*Intro!R35 -> 960000 | K3: 0 | L3: =Intro!K35*Intro!R35 -> 960000 | M3: =Intro!K35*Intro!R35 -> 960000 | N3: =Intro!K35*Intro!R35 -> 960000 | O3: =Intro!P35/3*Intro!R35 -> 864000 | P3: =SUM(D3:O3) -> 9888000 | Q3: =SUM(D3:I3) -> 5184000 | R3: =SUM(J3:O3) -> 4704000
B4: Income - Sales: | C4: Total: | D4: =D2+D3 -> 1171200 | E4: =E2+E3 -> 1171200 | F4: =F2+F3 -> 1171200 | G4: =G2+G3 -> 1464000 | H4: =H2+H3 -> 1464000 | I4: =I2+I3 -> 1464000 | J4: =I2+J3 -> 1464000 | K4: 0 | L4: 1464000 | M4: =M2+M3 -> 1413600 | N4: 1413600 | O4: 1317600 | P4: =SUM(D4:O4) -> 14978400 | Q4: =Q2+Q3 -> 7905600 | R4: =R2+R3 -> 7072800
B5: BASE DATA: | C5: 1yr Costs: | D5: (Materials only) | Q5: 6 Mo: Jan - Jun | R5: 6 Mo: Jul - Dec
B6: Homes: | C6: Homes p.Mo | D6: =Intro!K39*Intro!R39-Intro!K39*Intro!R39*20% -> 201600 | E6: =Intro!K39*Intro!R39-Intro!K39*Intro!R39*20% -> 201600 | F6: =Intro!K39*Intro!R39-Intro!K39*Intro!R39*20% -> 201600 | G6: =Intro!K39*Intro!R39 -> 252000 | H6: =Intro!K39*Intro!R39 -> 252000 | I6: =Intro!K39*Intro!R39 -> 252000 | J6: =Intro!K39*Intro!R39 -> 252000 | K6: 0 | L6: =Intro!K39*Intro!R39 -> 252000 | M6: =Intro!K39*Intro!R39 -> 252000 | N6: =Intro!K39*Intro!R39 -> 252000 | O6: =Intro!K39*Intro!R39 -> 252000 | P6: =SUM(D6:O6) -> 2620800 | Q6: =SUM(D6:I6) -> 1360800 | R6: =SUM(J6:O6) -> 1260000
B7: ← Halls: | C7: Halls p.Mo | D7: =Intro!K41*Intro!R39-Intro!K41*Intro!R39*20% -> 448000 | E7: =Intro!K41*Intro!R39-Intro!K41*Intro!R39*20% -> 448000 | F7: =Intro!K41*Intro!R39-Intro!K41*Intro!R39*20% -> 448000 | G7: =Intro!K41*Intro!R39 -> 560000 | H7: =Intro!K41*Intro!R39 -> 560000 | I7: =Intro!K41*Intro!R39 -> 560000 | J7: =Intro!K41*Intro!R39 -> 560000 | K7: 0 | L7: =Intro!K41*Intro!R39 -> 560000 | M7: =Intro!K41*Intro!R39 -> 560000 | N7: =Intro!K41*Intro!R39 -> 560000 | O7: =Intro!K41*Intro!R39 -> 560000 | P7: =SUM(D7:O7) -> 5824000 | Q7: =SUM(D7:I7) -> 3024000 | R7: =SUM(J7:O7) -> 2800000
B8: Costs - Materials: | C8: Total: | D8: =D6+D7 -> 649600 | E8: =E6+E7 -> 649600 | F8: =F6+F7 -> 649600 | G8: 812000 | H8: 812000 | I8: 812000 | J8: 812000 | K8: 0 | L8: =L6+L7 -> 812000 | M8: 812000 | N8: 812000 | O8: 812000 | P8: =SUM(D8:O8) -> 8444800 | Q8: =SUM(Q6:Q7) -> 4384800 | R8: =SUM(R6:R7) -> 4060000
A9: Current Online Cash Flow real data during the loan life | D9: Startup period + 1st Quarter | G9: 1st Yr - 2nd Quarter | I9: TOTAL | J9: 1st Yr - 3th Quarter | L9: TOTAL | M9: 1st Yr - 4th Quarter | O9: TOTAL | P9: 2nd Yr - 1st Quarter | R9: TOTAL
A10: Data are carried by Pro Forma Budgeting below → | D10: Sales | E10: Costs | F10: $ TOTAL | G10: Sales | H10: Costs | I10: $ TOTAL | J10: Sales | K10: Costs | L10: $ TOTAL | M10: Sales | N10: Costs | O10: $ TOTAL | P10: Sales | Q10: Costs | R10: $ TOTAL
A11: which will be processed by the software during the loan life
A12: From Level 1 | C12: Nr of Periods | D12: 1 | E12: =D12+1 -> 2 | F12: 3 | G12: 4 | H12: 5 | I12: 6 | J12: 7 | K12: 8 | L12: 9 | M12: 10 | N12: 11 | O12: 12 | P12: 13 | Q12: 14 | R12: =Q12+1 -> 15
C13: Nr of Monts | D13: 6 | E13: =D13+6 -> 12 | F13: 18 | G13: 24 | H13: 30 | I13: 36 | J13: 42 | K13: =J13+6 -> 48 | L13: 54 | M13: 60 | N13: 66 | O13: 72 | P13: 78 | Q13: 84 | R13: 90
B14: Repayment periods | C14: Date: | D14: 2022-12-31 | E14: 2023-06-30 | F14: 2023-12-31 | G14: 2024-06-30 | H14: 2024-12-31 | I14: 2025-06-30 | J14: 2025-12-31 | K14: 2026-06-30 | L14: 2026-12-31 | M14: 2027-06-30 | N14: 2027-12-31 | O14: 2028-06-30 | P14: 2028-12-31 | Q14: 2029-06-30 | R14: 2029-12-31
B15:  Own Funds | D15: Paid on import | E15: Repaid back | J15: Level ②
B16:  VAT of Loan's Costs - Return↔ | D16: =Intro!S51 -> 1416200 | E16: =-D16 -> -1416200
B17: Import DUTY of cap. goods | D17: =Intro!R51 -> 177025
B18: Local operations + administration fees | D18: =Intro!R54 -> 257025 | F18: Values of the financial model:
B19: Startup capital Investment | D19: =SUM(D16:D18) -> 1850250 | R19: =SUM(E21:Q21) -> 91334400
A20: Database for project development | C20: Date: | D20: =D14 -> 2022-12-31 | E20: 2023-06-30 | F20: 2023-12-31 | G20: 2024-06-30 | H20: 2024-12-31 | I20: 2025-06-30 | J20: 2025-12-31 | K20: 2026-06-30 | L20: 2026-12-31 | M20: 2027-06-30 | N20: 2027-12-31 | O20: 2028-06-30 | P20: 2028-12-31 | Q20: 2029-06-30 | R20: 2029-12-31
A21: Sales, | B21: Revenue Pro-forma Budget | C21: =SUM(D21:Q21) -> 92652000 | D21: =D34 -> 1317600 | E21: =E34 -> 7905600 | F21: 7072800 | G21: 7905600 | H21: 7072800 | I21: 7905600 | J21: 7072800 | K21: 7905600 | L21: =L34 -> 7072800 | M21: 7905600 | N21: 7072800 | O21: 7905600 | P21: 7072800 | Q21: 1464000 | R21: =R34 -> 92652000
A22: Costs, | B22: TOTAL (in $) | C22: =SUM(D22:Q22) -> 7630087.736 | D22: =SUM(D23:D24) -> 96300 | E22: =SUM(E23:E24) -> 597800 | F22: 505800 | G22: 530749.1 | H22: 582749.1 | I22: 587765.0129 | J22: 587765.0129 | K22: 596348.6405 | L22: 576348.6405 | M22: 581500.8972 | N22: 581500.8972 | O22: 606722.7093 | P22: 586722.7093 | Q22: 612015.0159 | R22: =SUM(#REF!) -> 
B23: Variable costs | C23: =SUM(D23:Q23) -> 1704600 | D23: =D44 -> 23400 | E23: 140400 | F23: 68400 | G23: 68400 | H23: 140400 | I23: 140400 | J23: 140400 | K23: 140400 | L23: 140400 | M23: 140400 | N23: 140400 | O23: 140400 | P23: 140400 | Q23: 140400
B24: Fixed costs | C24: =SUM(D24:Q24) -> 5925487.736 | D24: =D50 -> 72900 | E24: 457400 | F24: 437400 | G24: 462349.1 | H24: 442349.1 | I24: 447365.0128 | J24: 447365.0128 | K24: 455948.6405 | L24: 435948.6405 | M24: 441100.8972 | N24: 441100.8972 | O24: 466322.7093 | P24: 446322.7093 | Q24: 471615.0159
A25: EBT | B25: Operating Profit (Sales - Costs): | D25: =D21-D22 -> 1221300 | E25: =E21-E22 -> 7307800 | F25: =F21-F22 -> 6567000 | G25: 7374850.9 | H25: 6490050.9 | I25: 7317834.987 | J25: 6485034.987 | K25: 7309251.359 | L25: 6496451.359 | M25: 7324099.103 | N25: 6491299.103 | O25: 7298877.291 | P25: 6486077.291 | Q25: 851984.9841
B26: Depreciations | C26: 0.16 | D26: =D25*C26 -> 195408 | E26: =E25*C26 -> 1169248 | F26: =F25*C26 -> 1050720 | G26: =G25*C26 -> 1179976.144 | H26: =H25*C26 -> 1038408.144 | I26: =I25*C26 -> 1170853.598 | J26: =J25*C26 -> 1037605.598 | K26: =K25*C26 -> 1169480.218 | L26: =L25*C26 -> 1039432.218 | M26: =M25*C26 -> 1171855.856 | N26: =N25*C26 -> 1038607.856 | O26: =O25*C26 -> 1167820.367 | P26: =P25*C26 -> 1037772.367 | Q26: =Q25*C26 -> 136317.5975 | R26: =R21-R22 ->  | T26: =SUM(D26:Q26) -> 13603505.96
B27: Cash Flows (EBT) | D27: =D25-D26 -> 1025892 | E27: =E25-E26 -> 6138552 | F27: 5516280 | G27: 6194874.756 | H27: 5451642.756 | I27: 6146981.389 | J27: 5447429.389 | K27: 6139771.142 | L27: 5457019.142 | M27: 6152243.246 | N27: 5452691.246 | O27: 6131056.924 | P27: 5448304.924 | Q27: 715667.3867
B28: Annual Income tax: | C28: 0.15 | D28: =C28*D27 -> 153883.8 | E28: =C28*E27 -> 920782.8 | F28: =C28*F27 -> 827442 | G28: =C28*G27 -> 929231.2134 | H28: =C28*H27 -> 817746.4134 | I28: =C28*I27 -> 922047.2084 | J28: =C28*J27 -> 817114.4084 | K28: =C28*K27 -> 920965.6713 | L28: =C28*L27 -> 818552.8713 | M28: =C28*M27 -> 922836.487 | N28: =C28*N27 -> 817903.687 | O28: =C28*O27 -> 919658.5386 | P28: =C28*P27 -> 817245.7386 | Q28: =C28*Q27 -> 107350.108
B29: Project's net cash inflow | C29: =SUM(D29:Q29) -> 60705645.36 | D29: =D27-D28 -> 872008.2 | E29: =E27-E28 -> 5217769.2 | F29: 4688838 | G29: 5265643.543 | H29: 4633896.343 | I29: 5224934.181 | J29: 4630314.981 | K29: 5218805.471 | L29: 4638466.271 | M29: 5229406.759 | N29: 4634787.559 | O29: 5211398.386 | P29: 4631059.186 | Q29: 608317.2787 | R29: =#REF!-#REF!-#REF! ->  | T29: =SUM(D29:Q29) -> 60705645.36 | U29: =T29/$Q$13 -> 722686.2542
A30: Cumulative NCFs (loan pay-off incl.) ↗ | D30: =D29 -> 872008.2 | E30: =D30+E29 -> 6089777.4 | F30: =E30+F29 -> 10778615.4 | G30: =F30+G29 -> 16044258.94 | H30: =G30+H29 -> 20678155.29 | I30: 25903089.47 | J30: 30533404.45 | K30: 35752209.92 | L30: 40390676.19 | M30: 45620082.95 | N30: 50254870.51 | O30: 55466268.89 | P30: =O30+P29 -> 60097328.08 | Q30: =P30+Q29 -> 60705645.36 | R30: =Q30+#REF! -> 
C31: Notes:
A32: ● Prefabricated Buildings and Halls | E32: June | F32: Decemner | G32: June | H32: Decemner | I32: June | J32: Decemner | K32: June | L32: Decemner | M32: June | N32: Decemner | O32: June | P32: Decemner
A33: Accounting reports at each 6 Мо: | D33: 2022-12-31 | E33: 1st half 23Yr | F33: 2nd half 23 Yr | G33: 1st half 24 Yr | H33: 2nd half 24 Yr | I33: 1st half.25 Yr | J33: 2nd half.25 Yr | K33: 1st half.26 Yr | L33: 2nd half.26 Yr | M33: 1st half.27 Yr | N33: 2nd half.27 Yr | O33: 1st half.28 Yr | P33: 2nd half.26 Yr | Q33: =Q14 -> 2029-06-30 | R33: TOTAL
A34: Sales: | D34: =D35+D36 -> 1317600 | E34: =E35+E36 -> 7905600 | F34: =F35+F36 -> 7072800 | G34: =G35+G36 -> 7905600 | H34: 7072800 | I34: 7905600 | J34: 7072800 | K34: 7905600 | L34: =L35+L36 -> 7072800 | M34: 7905600 | N34: 7072800 | O34: 7905600 | P34: 7072800 | Q34: =Q35+Q36 -> 1464000 | R34: =SUM(D34:Q34) -> 92652000
A35: Complete | B35: • Homes: → | D35: =O2 -> 453600 | E35: =Q2 -> 2721600 | F35: =R2 -> 2368800 | G35: =Q2 -> 2721600 | H35: =R2 -> 2368800 | I35: =Q2 -> 2721600 | J35: =R2 -> 2368800 | K35: =Q2 -> 2721600 | L35: =R2 -> 2368800 | M35: =Q2 -> 2721600 | N35: =R2 -> 2368800 | O35: =Q2 -> 2721600 | P35: =R2 -> 2368800 | Q35: =I2 -> 504000 | R35: =SUM(D35:Q35) -> 31500000
A36: current | B36: Exchange • Halles: → | D36: =O3 -> 864000 | E36: =Q3 -> 5184000 | F36: =R3 -> 4704000 | G36: =Q3 -> 5184000 | H36: =R3 -> 4704000 | I36: =Q3 -> 5184000 | J36: =R3 -> 4704000 | K36: =Q3 -> 5184000 | L36: =R3 -> 4704000 | M36: =Q3 -> 5184000 | N36: =R3 -> 4704000 | O36: =Q3 -> 5184000 | P36: =R3 -> 4704000 | Q36: =I3 -> 960000 | R36: =SUM(D36:Q36) -> 61152000
A37: data | D37: =D34 -> 1317600 | E37: =D37+E34 -> 9223200 | F37: =E37+F34 -> 16296000 | G37: =F37+G34 -> 24201600 | H37: 31274400 | I37: 39180000 | J37: 46252800 | K37: 54158400 | L37: 61231200 | M37: 69136800 | N37: 76209600 | O37: 84115200 | P37: 91188000 | Q37: 92652000
C38: Notes:
A39: OPERATIONAL AND RISK MANAGEMENT | D39: ↑ ENTER ↑
A40: Sales, | B40: Current accounting reports | K40: =C21 -> 92652000
A41: Costs, | B41: TOTAL accounting reports
A42: 0.06 | B42: Cash Flow Statenents ‒
B43: Income data (in $), Periods: | C43: Date: | D43: =D14 -> 2022-12-31 | E43: 2023-06-30 | F43: 2023-12-31 | G43: 2024-06-30 | H43: 2024-12-31 | I43: 2025-06-30 | J43: 2025-12-31 | K43: 2026-06-30 | L43: 2026-12-31 | M43: 2027-06-30 | N43: 2027-12-31 | O43: 2028-06-30 | P43: 2028-12-31 | Q43: 2029-06-30 | R43: 2029-12-31
A44: For 1 Mo: | B44: Variable costs | C44: =SUM(D44:Q44) -> 1704600 | D44: =SUM(D45:D48) -> 23400 | E44: =SUM(E45:E48) -> 140400 | F44: =SUM(F45:F48)-F46 -> 68400 | G44: =SUM(G45:G48)-G46 -> 68400 | H44: =SUM(H45:H48) -> 140400 | I44: =SUM(I45:I48) -> 140400 | J44: =SUM(J45:J48) -> 140400 | K44: 140400 | L44: =SUM(L45:L48) -> 140400 | M44: 140400 | N44: 140400 | O44: 140400 | P44: 140400 | Q44: 140400 | R44: =SUM(R45:R48) -> 
A45: 3000 | B45: Heating, running costs, telephones | D45: =A45 -> 3000 | E45: =A45*6 -> 18000 | F45: =A45*6 -> 18000 | G45: =A45*6 -> 18000 | H45: =A45*6 -> 18000 | I45: =A45*6 -> 18000 | J45: =A45*6 -> 18000 | K45: =A45*6 -> 18000 | L45: =A45*6 -> 18000 | M45: =A45*6 -> 18000 | N45: =A45*6 -> 18000 | O45: =A45*6 -> 18000 | P45: =A45*6 -> 18000 | Q45: =A45*6 -> 18000
A46: 12000 | B46: Operating expenses ̶ packing, etc. | D46: =A46 -> 12000 | E46: =A46*6 -> 72000 | F46: =A46*6 -> 72000 | G46: =A46*6 -> 72000 | H46: =A46*6 -> 72000 | I46: =A46*6 -> 72000 | J46: =A46*6 -> 72000 | K46: =A46*6 -> 72000 | L46: =A46*6 -> 72000 | M46: =A46*6 -> 72000 | N46: =A46*6 -> 72000 | O46: =A46*6 -> 72000 | P46: =A46*6 -> 72000 | Q46: =A46*6 -> 72000 | R46: =#REF! -> 
A47: 400 | B47: Other materials and services | D47: =A47 -> 400 | E47: =A47*6 -> 2400 | F47: =A47*6 -> 2400 | G47: =A47*6 -> 2400 | H47: =A47*6 -> 2400 | I47: =A47*6 -> 2400 | J47: =A47*6 -> 2400 | K47: =A47*6 -> 2400 | L47: =A47*6 -> 2400 | M47: =A47*6 -> 2400 | N47: =A47*6 -> 2400 | O47: =A47*6 -> 2400 | P47: =A47*6 -> 2400 | Q47: =A47*6 -> 2400 | R47: =$A$48*#REF! -> 
A48: 8000 | B48: Cars - fuel and maintenance | D48: =A48 -> 8000 | E48: =A48*6 -> 48000 | F48: =A48*6 -> 48000 | G48: =A48*6 -> 48000 | H48: =A48*6 -> 48000 | I48: =A48*6 -> 48000 | J48: =A48*6 -> 48000 | K48: =A48*6 -> 48000 | L48: =A48*6 -> 48000 | M48: =A48*6 -> 48000 | N48: =A48*6 -> 48000 | O48: =A48*6 -> 48000 | P48: =A48*6 -> 48000 | Q48: =A48*6 -> 48000 | R48: =P48*(1+#REF!) -> 
B49: Date : | D49: =C14 -> Date: | E49: =E43 -> 2023-06-30 | F49: =F43 -> 2023-12-31 | G49: =G14 -> 2024-06-30 | H49: 2024-12-31 | I49: 2025-06-30 | J49: 2025-12-31 | K49: 2026-06-30 | L49: 2026-12-31 | M49: 2027-06-30 | N49: 2027-12-31 | O49: 2028-06-30 | P49: 2028-12-31 | Q49: 2029-06-30 | R49: 2029-12-31
A50: Annually | B50: Fixed costs | C50: =SUM(D50:Q50) -> 5925487.736 | D50: =SUM(D51:D56) -> 72900 | E50: =SUM(E51:E56) -> 457400 | F50: 437400 | G50: 462349.1 | H50: 442349.1 | I50: 447365.0128 | J50: 447365.0128 | K50: 455948.6405 | L50: 435948.6405 | M50: 441100.8972 | N50: 441100.8972 | O50: 466322.7093 | P50: 446322.7093 | Q50: 471615.0159 | R50: =SUM(R55:R57) -> 
A51: =6800*12 -> 81600 | B51: Rent of the company field - 0.96 ha | C51: 6800 | D51: =C51 -> 6800 | E51: =C51*6 -> 40800 | F51: =C51*6 -> 40800 | G51: =C51*6 -> 40800 | H51: =C51*6 -> 40800 | I51: =C51*6 -> 40800 | J51: =C51*6 -> 40800 | K51: =C51*6 -> 40800 | L51: =A51/2 -> 40800 | M51: =A51/2 -> 40800 | N51: =A51/2 -> 40800 | O51: =A51/2 -> 40800 | P51: =A51/2 -> 40800 | Q51: =A51/2 -> 40800
A52: 20000 | B52: Marketing, exhibitions | E52: =A52 -> 20000 | G52: =A52 -> 20000 | K52: =A52 -> 20000 | O52: =A52 -> 20000 | Q52: =A52 -> 20000
A53: For 1 Mo: | C53: Annual increase
A54: =Intro!O63 -> 61100 | B54: Payroll administration, p. Mo | C54: 0.027 | D54: =A54 -> 61100 | E54: =A54*6 -> 366600 | F54: =A54*6 -> 366600 | G54: =F54+F54*2.7%/2 -> 371549.1 | H54: =F54+F54*2.7%/2 -> 371549.1 | I54: =G54+G54*2.7%/2 -> 376565.0128 | J54: =G54+G54*2.7%/2 -> 376565.0128 | K54: =J54+J54*2.7%/2 -> 381648.6405 | L54: =J54+J54*2.7%/2 -> 381648.6405 | M54: =L54+L54*2.7%/2 -> 386800.8972 | N54: =L54+L54*2.7%/2 -> 386800.8972 | O54: =N54+N54*2.7%/2 -> 392022.7093 | P54: =N54+N54*2.7%/2 -> 392022.7093 | Q54: =P54+P54*2.7%/2 -> 397315.0159
A55: 3000 | B55: Office - phones, internet, power | D55: =A55 -> 3000 | E55: =A55*6 -> 18000 | F55: =A55*6 -> 18000 | G55: =A55*6 -> 18000 | H55: =A55*6 -> 18000 | I55: =A55*6 -> 18000 | J55: =A55*6 -> 18000 | K55: =A55/2 -> 1500 | L55: =A55/2 -> 1500 | M55: =A55/2 -> 1500 | N55: =A55/2 -> 1500 | O55: =A55/2 -> 1500 | P55: =A55/2 -> 1500 | Q55: =A55/2 -> 1500 | R55: =$A$55/2 -> 1500
A56: 2000 | B56: Financial reporting, cash-flow control | D56: =A56 -> 2000 | E56: =D56*6 -> 12000 | F56: =D56*6 -> 12000 | G56: =D56*6 -> 12000 | H56: =D56*6 -> 12000 | I56: =D56*6 -> 12000 | J56: =D56*6 -> 12000 | K56: =D56*6 -> 12000 | L56: =D56*6 -> 12000 | M56: =D56*6 -> 12000 | N56: =D56*6 -> 12000 | O56: =D56*6 -> 12000 | P56: =D56*6 -> 12000 | Q56: =D56*6 -> 12000 | R56: =$A$56/2 -> 1000
B57: TOTAL Costs: | C57: =SUM(D57:Q57) -> 7630087.736 | D57: =D44+D50 -> 96300 | E57: =E44+E50 -> 597800 | F57: =F44+F50 -> 505800 | G57: =G44+G50 -> 530749.1 | H57: =H44+H50 -> 582749.1 | I57: 587765.0129 | J57: 587765.0129 | K57: 596348.6405 | L57: 576348.6405 | M57: 581500.8972 | N57: 581500.8972 | O57: 606722.7093 | P57: 586722.7093 | Q57: =Q44+Q50 -> 612015.0159 | R57: ='Cap.Goods'!#REF! -> 
C58: =C44+C50 -> 7630087.736 | D58: =D57 -> 96300 | E58: =D58+E57 -> 694100 | F58: =E58+F57 -> 1199900 | G58: =F58+G57 -> 1730649.1 | H58: 2313398.2 | I58: 2901163.213 | J58: 3488928.226 | K58: 4085276.866 | L58: 4661625.507 | M58: 5243126.404 | N58: 5824627.301 | O58: 6431350.01 | P58: 7018072.72 | Q58: 7630087.736
A59: 2022-12-01 | B59: Turnkey - start date of operation Restarted for corrections | C59: Notes:
E60: Years: | F60: 1 | G60: =F60+1 -> 2 | H60: 3 | I60: 4 | J60: 5 | K60: 6 | L60: 7 | Q60: up
A61: Level ❸ | B61: PROFITABILITY ANALYSIS | D61: Up front investment: | E61: 0 | F61: =#REF!+#REF! ->  | G61: =#REF!+#REF! ->  | H61: =#REF!+#REF! ->  | J61: =#REF!+#REF! ->  | K61: =#REF!+#REF! ->  | L61: =#REF!+#REF! -> 
B62: 1-Yr period Operating Cash Flows | E62: Debt-Service Coverage Ratio = EBIT/Costs | F62: =SUM(G62:Q62)/#REF! ->  | G62: =(#REF!+#REF!)/G79 ->  | I62: =(#REF!+#REF!)/J79 ->  | J62: =(#REF!+#REF!)/K79 ->  | K62: =(#REF!+#REF!)/M79 ->  | L62: =(#REF!+#REF!)/O79 ->  | M62: =(#REF!+#REF!)/Q79 -> 
A63: Discount Cash Flow Models | C63: The Investor can make enough in operating | F63: =IF(F62>=1.2,"Good","Bad") ->  | G63: Default Risk Management | K63: Operational Risk Management
A64: Section MEASURING PROFITABILITY | C64: profits to pay its current debt service costs. It is subject of fiscal year-end monitoring. | F64: DSCR | G64: Section | M64: Section "SENSITIVITY ANALYSIS"
F65: Level④ | G65: PAYBACK PERIOD | K65: Simulation of Good Market | M65: Enter | N65: Simulation of Bed Market
A66: Discount (hurdle) rate : | C66: 0.1 | D66: Loan Life Coverage Ratio | G66: Period: | H66: =D122 -> 7 | I66: 7.844823502 | K66: =IF(Bayes!C7>Bayes!C9,"A1","A2") -> A1 | L66: Salesman | M66: A1 share | N66: Salesman | O66: =IF(Bayes!C7<Bayes!C9,"A1 ","A2") -> A2
A67: Net Present Value (NPV for CADS) : | C67: =NPV(C66,E61:K61) ->  | D67: Unlike period-on-period measures such as the above DSCR, it provides the Lender with a measure of the number of times the cash flow over the scheduled loan life can repay the outstanding debt balance. | G67: Date: | H67: =A122 ->  | I67: earliness | L67: 80 | M67: 0.65 | N67: 20
A68: IRR : | C68: =IRR(E61:K61) ->  | D68: 0.14 | E68: LLCR = | F68: =C67/C78 ->  | H68: Accelerated amortization of loans | K68: Good sales | M68: =Intro!P6 -> 2022-08-18 | N68: Bad sales
B69: Commercial bank, Own funds (Loan "D") | C69: =SUM(D69+E69) ->  | D69: ='Cap.Goods'!L35 ->  | E69: ='Cap.Goods'!M35 ->  | F69: 0 | H69: Update £ it now. | M69: . Correction factor or Area of critical announcement
M70: =IF(AND(L67>90,N67>60)," STOP! Calm down. You've just entered a field of dreams!",Bayes!P21) -> 2
B71: =O17 -> 0 | C71: =#REF! ->  | D71: =C14 -> Date: | E71: =E14 -> 2023-06-30 | F71: 2023-12-31 | G71: 2024-06-30 | H71: 2024-12-31 | I71: 2025-06-30 | J71: 2025-12-31 | K71: 2026-06-30 | L71: 2026-12-31 | M71: 2027-06-30 | N71: 2027-12-31 | O71: 2028-06-30 | P71: 2028-12-31 | Q71: 2029-06-30 | R71: 2029-12-31
B72: LOANS Number of Periods | C72: =C13 -> Nr of Monts | F72: =E13 -> 12 | G72: 18 | H72: 24 | I72: 30 | J72: 36 | K72: 42 | L72: 48 | M72: 54 | N72: 60 | O72: 66 | P72: 72 | Q72: 78 | R72: =P13 -> 78
B73: Nr. of periods | C73: =MATCH(50,E73:R73) -> 14 | E73: =D12 -> 1 | F73: 2 | G73: 3 | H73: 4 | I73: 5 | J73: 6 | K73: 7 | L73: 8 | M73: 9 | N73: 10 | O73: 11 | P73: 12 | Q73: 13 | R73: 14
B74: Nr. of principal period repayments | C74: =MATCH(50,G74:R74) -> 12 | G74: =D12 -> 1 | H74: 2 | J74: 4 | K74: 5 | L74: 6 | M74: 7 | N74: 8 | O74: 9 | P74: 10 | Q74: 11 | R74: 12
A76: Startup capital Investment | C76: =D19 -> 1850250 | D76: =C76 -> 1850250 | E76: =D76 -> 1850250 | F76: =E76 -> 1850250 | G76: =F76-F78 -> 1850250 | H76: =G76-G78 ->  | I76: =H76-H78 ->  | J76: =I76-I78 ->  | L76: =K76-K78 ->  | M76: =L76-L78 ->  | N76: =M76-M78 ->  | Q76: =P76-P78 ->  | R76: =Q76-Q78 -> 
A77: =SUM(D77:Q77) ->  | B77: Interest payments | C77: ='Cap.Goods'!#REF! ->  | G77: =-ROUND(IPMT($C$77/2,G74,$C$74,F76),0) ->  | H77: =-ROUND(IPMT($C$77/2,H74,$C$74,G76),0) ->  | I77: =-ROUND(IPMT($C$77/2,I74,$C$74,H76),0) ->  | R77: =-ROUND(IPMT($C$77/2,R74,$C$74,Q76),0) ->  | T77: =SUM(G77:R77) -> 
B78: Principal installments | C78: =ROUND(SUM(D78:Q78),0) ->  | G78: =-ROUND(PPMT($C$77/2,G74,$C$74,$C$76),0) ->  | R78: =-ROUND(PPMT($C$77/2,R74,$C$74,($C$76-$D$78-$F$78)),0) ->  | T78: =SUM(G78:R78) -> 
B79: Installments, TOTAL: | D79: =SUM(D77:D78) -> 0 | E79: =SUM(E77:E78) -> 0 | F79: =SUM(F77:F78) -> 0 | G79: =SUM(G77:G78) ->  | H79: =SUM(H77:H78) ->  | I79: =SUM(I77:I78) ->  | J79: =SUM(J77:J78) ->  | L79: =SUM(L77:L78) ->  | O79: =SUM(O77:O78) ->  | P79: =SUM(P77:P78) ->  | Q79: =SUM(Q77:Q78) ->  | R79: =SUM(R77:R78) -> 
A80: Diversification following from Risk Assessment
A81: OPERATIONAL TEST } Balance liabilities | C81: =C18 -> 0 | D81: =D18 -> 257025 | E81: =D81+E18 -> 257025 | F81: =E81+#REF! ->  | G81: =F81-F83 ->  | H81: =G81-G83 ->  | I81: =H81-H83 ->  | J81: =I81-I83 ->  | R81: =Q81-Q83 -> 
A82: =SUM(D82:Q82) ->  | B82: Interest payments | C82: ='Cap.Goods'!#REF! ->  | E82: =-ROUND(IPMT($C$82/2,E73,$C$73,D81),0) ->  | F82: =-ROUND(IPMT($C$82/2,F73,$C$73,E81),0) ->  | G82: =-ROUND(IPMT($C$82/2,G73,$C$73,F81),0) ->  | H82: =-ROUND(IPMT($C$82/2,H73,$C$73,G81),0) ->  | I82: =-ROUND(IPMT($C$82/2,I73,$C$73,H81),0) ->  | J82: =-ROUND(IPMT($C$82/2,J73,$C$73,I81),0) ->  | R82: =-ROUND(IPMT($C$82/2,R73,$C$73,Q81),0) ->  | T82: =SUM(G82:R82) -> 
B83: Principal installments | C83: =ROUND(SUM(D83:Q83),-1) ->  | G83: =-ROUND(PPMT($C$82/2,G74,$C$74,$C$81),0) ->  | H83: =-ROUND(PPMT($C$82/2,H74,$C$74,$C$81),0) ->  | I83: =-ROUND(PPMT($C$82/2,I74,$C$74,$C$81),0) ->  | J83: =-ROUND(PPMT($C$82/2,J74,$C$74,$C$81),0) ->  | R83: =-ROUND(PPMT($C$82/2,R74,$C$74,$C$81),0) -> 
B84: Installments, TOTAL: | D84: =SUM(D81:D83) -> 257025 | E84: =SUM(E82:E83) ->  | F84: =SUM(F82:F83) ->  | G84: =SUM(G82:G83) ->  | H84: =SUM(H82:H83) ->  | I84: =SUM(I82:I83) ->  | P84: =SUM(P82:P83) ->  | Q84: =SUM(Q82:Q83) ->  | R84: =SUM(R82:R83) -> 
A85: Diversification following from Risk Assessment
A86: OPERATIONAL TEST } Balance liabilities | C86: =C69 ->  | D86: =D69 ->  | E86: =D86+E69 ->  | F86: =E86+F69 ->  | G86: =F86-F88 ->  | H86: =G86-G88 ->  | I86: =H86-H88 ->  | R86: =Q86-Q88 -> 
A87: =ROUND(SUM(D87:Q87),-1) ->  | B87: Interest payments | C87: ='Cap.Goods'!L37 -> 0.055 | E87: =-ROUND(IPMT($C$87/2,E73,$C$73,D86),0) ->  | F87: =-ROUND(IPMT($C$87/2,F73,$C$73,E86),0) ->  | G87: =-ROUND(IPMT($C$87/2,G73,$C$73,F86),0) ->  | H87: =-ROUND(IPMT($C$87/2,H74,$C$74,G86),0) ->  | I87: =-ROUND(IPMT($C$87/2,I74,$C$74,H86),0) ->  | J87: =-ROUND(IPMT($C$87/2,J74,$C$74,I86),0) ->  | K87: =-ROUND(IPMT($C$87/2,K74,$C$74,J86),0) ->  | R87: =-ROUND(IPMT($C$87/2,R74,$C$74,Q86),0) ->  | T87: =SUM(G87:R87) -> 
B88: Principal deferred payments | C88: =C69 ->  | G88: =-ROUND(PPMT($C$87/2,G74,$C$74,$C$86),0) ->  | H88: =-ROUND(PPMT($C$87/2,H73,$C$73,$C$86),0) ->  | I88: =-ROUND(PPMT($C$87/2,I73,$C$73,$C$86),0) ->  | Q88: =-ROUND(PPMT($C$87/2,Q73,$C$73,$C$86),0) ->  | R88: =-ROUND(PPMT($C$87/2,R73,$C$73,$C$86),0) -> 
B89: Installments, TOTAL: | E89: =SUM(E87:E88) ->  | F89: =SUM(F87:F88) ->  | G89: =SUM(G87:G88) ->  | H89: =SUM(H87:H88) ->  | I89: =SUM(I87:I88) ->  | R89: =SUM(R87:R88) -> 
A91: =A77+A82+A87 ->  | B91: GRAPHS | D91: 1 | E91: =D91+1 -> 2 | F91: =E91+1 -> 3 | G91: =F91+1 -> 4 | H91: =G91+1 -> 5 | I91: 6 | J91: 7 | K91: 8 | L91: 9 | M91: 10 | N91: 11 | O91: 12 | P91: =O91+1 -> 13 | Q91: =P91+1 -> 14 | R91: =Q91+1 -> 15
B92: Costs | D92: =D58 -> 96300 | E92: =E58 -> 694100 | F92: =F58 -> 1199900 | G92: =G58 -> 1730649.1 | H92: 2313398.2 | I92: 2901163.213 | J92: 3488928.226 | K92: 4085276.866 | L92: 4661625.507 | M92: 5243126.404 | N92: 5824627.301 | O92: 6431350.01 | P92: 7018072.72 | Q92: 7630087.736 | R92: =R76 -> 
B93: OPERATING PERIOD } Total balance liabilities "A" | C93: IN OPERATION | D93: =D76 -> 1850250 | E93: =E76 -> 1850250 | F93: =F76 -> 1850250 | G93: =G76 -> 1850250 | H93: =H76 ->  | I93: =I76 ->  | R93: =R76 -> 
B94: Cash | D94: =D34 -> 1317600 | E94: =E34 -> 7905600 | F94: =F34 -> 7072800 | G94: 7905600 | H94: 7072800 | I94: 7905600 | J94: 7072800 | K94: 7905600 | L94: 7072800 | M94: 7905600 | N94: 7072800 | O94: 7905600 | P94: 7072800 | Q94: 1464000 | R94: 92652000
B95: Net Income | D95: =D30 -> 872008.2 | E95: =F30 -> 10778615.4 | F95: =G30 -> 16044258.94 | G95: =H30 -> 20678155.29 | H95: =I30 -> 25903089.47 | I95: 30533404.45 | J95: 35752209.92 | K95: 40390676.19 | L95: 45620082.95 | M95: 50254870.51 | N95: 55466268.89 | O95: 60097328.08 | P95: 60705645.36 | Q95: =Q30 -> 60705645.36 | R95: =R30 -> 
B101: NCFs (loan pay-off incl.) ↗
C112: Debt Rate | D112: =D93/$C$19 -> 
C113: Start date
B114: Auxiliary rows: Crossing point of cash and debt | C114: =D71 -> Date: | D114: 1 | E114: =D114+1 -> 2 | F114: =E114+1 -> 3 | G114: =F114+1 -> 4 | H114: =G114+1 -> 5 | I114: 6 | J114: 7 | K114: 8 | L114: 9 | M114: 10 | N114: =M114+1 -> 11 | O114: =N114+1 -> 12 | P114: =O114+1 -> 13 | Q114: =P114+1 -> 14
B115: Payback > cumulate OCFs | C115: =MATCH(A118,#REF!) ->  | D115: =#REF! ->  | E115: =D115+#REF! ->  | F115: =E115+#REF! ->  | G115: =F115+#REF! ->  | H115: =G115+#REF! ->  | I115: =H115+#REF! ->  | J115: =I115+#REF! ->  | K115: =J115+#REF! ->  | L115: =K115+#REF! ->  | M115: =L115+#REF! ->  | N115: =M115+#REF! ->  | O115: =N115+#REF! ->  | P115: =O115+#REF! ->  | Q115: =P115+#REF! -> 
B116: repayment estimation row | C116: =DATE(YEAR(C114)+C115,MONTH(C114)+2,DAY(C114+7)) ->  | D116: =CHOOSE(C115,E71,F71,G71,H71,I71,J71,K71,L71,M71,N71,O71,P71,Q71) ->  | E116: =C115*6 ->  | F116: =E116/12 ->  | G116: =ROUNDUP(F116,0) ->  | H116: =G116-F116 ->  | I116: =H116*12 -> 
B117: auxiliary row | C117: Payback date | E117: =(D116-E71)/12 ->  | F117: =ROUNDDOWN(E117,0) ->  | G117: =E117-F117 ->  | H117: =G117*12 ->  | I117: =IF(H117=12,F117+1,F117) ->  | J117: =IF(H117=12,0,H117) -> 
A118: =C77 ->  | B118: Base forecast
A119: =D122*365+1+E122*30+4 ->  | B119: Yr: | D119: 1 | E119: 2 | F119: 3 | G119: 4 | H119: 5 | I119: 6 | J119: 7 | K119: 8
A120: =A119/(365+1) ->  | B120: AnnNCinF | D120: =#REF!+#REF! ->  | E120: =#REF!+#REF! ->  | F120: =#REF!+#REF! ->  | G120: =#REF!+#REF! ->  | H120: =#REF!+#REF! ->  | I120: =#REF!+#REF! ->  | J120: =#REF!+#REF! -> 
A121: =D20 -> 2022-12-31 | B121: Copulative | D121: =D120 ->  | E121: =D121+E120 ->  | F121: =E121+F120 ->  | G121: =F121+G120 -> 
A122: =A121+A119 ->  | B122: Period | D122: =COUNTIF(D121:J121,"<"&A118) -> 7 | E122: =F122*12/10 ->  | F122: =(A118-HLOOKUP(COUNTIF(D121:J121,"<"&A118),D119:J121, 3,0))/(HLOOKUP(COUNTIF(D121:J121,"<"&A118)+1,D119:J121,2,0))*12 -> 
E123: Ê | F123: Indicates the fraction of the year
D126: 0.229 | E126: 0.1787 | F126: 0.1422 | G126: 0.0655 | H126: 0.0199 | I126: 0.0019 | J126: 0 | K126: 0 | L126: 0.012 | M126: 0.0644 | N126: 0.08 | O126: 0.2064 | P126: =SUM(D126:O126) -> 1

Sheet Bayes
A1: CHAPTER 1 | B1: DECISION ANALYSIS | L1: Name of Project
A2: Level④ | B2: POSTERIOR PROBABILITIES OF TWO EVENTS | L2: =Intro!G4 -> Prefabricated Buildings and Halls steel structures
A4: Background: | B4: You are producer and supplier of high quality vegetables to two salesmen on large nets of European wholesale markets. Let A1 and A2 denoted two events of interest—different quantiies for sales.
A5: Historical Info: | B5: Enter new data below  from | D5: If except these two events of interest there are more probabilities indicated by the Online Cash-Flow Control System (OCFCS), go to the next Sheet "Bayes5". | Q5: 5 Events
A7: Event A1: part of QUANTITY for Salesman A1 → | C7: =BUDGET!M67 -> 0.65 | D7: Percentage of prior probability for sale on the market. | J7: The mutually exclusive events for which posterior probabilities are desired.
J8: My events of interest:
A9: Event A2: part of QUANTITY for Salesman A2 → | C9: =100%-C7 -> 0.35 | D9: Percentage supplied to A2 I | F9: → low quality of commercial service - term → of deferred payment and lower income. | J9: Which of both market distributors sells our products on the better prices and pays us faster?
F10: In analyzing of conditional prior probability for specific events of interest here are indicated probabilities giving new information for their revision
A11: Event A1: QUALITY Good services for Salesman A1 → | C11: =BUDGET!L67/100 -> 0.8 | D11: Percentage Good sаlеs and payments (G) | F11: Based on pre-design marketing the values of prior conditional probabilities of professional ratings of the two salesmen and their markets are shown in the Table. This prior probability will be revised in light of new operational information Income streams when appear problems, what is the probability and what part is due to each Sales-man? The Joint Bad Probabilities are found by multiplying the prior probabilities by the Conditional Probabilities = equal to Overall probability of finding the Bad part of commercial outsourcing, and for further improvement.
A13: Event A2: QUALITY Bad services for Salesman A2 → | C13: =BUDGET!N67/100 -> 0.2 | D13: Percentage Bad sаlеs and payment (B)
A15: Safe Event | C15: SALES REVENUE EVENTS | E15: PRIOR PROBABILITY | G15: POSTERIOR | K15: TABULAR APPROACH
A16: Restore Model | B16: When Yu pay - cry | C16: Percentage of total Sаlеs | D16: Percentage Bad QUALITY Sаlеs | E16: QUANTITY % from A1∩A2 Sаlеs | G16: PROBABILITIES that Bad part of product is: | K16: A1U A2 Prior Probabilities | L16: B Conditional Probabilities | M16: Joint Bad A1, 2 ∩B | N16: Posterior Probabilities | P16: Others cry
A18: Clean Model | B18: Salesman A1 | C18: =C7 -> 0.65 | D18: =1-C11 -> 0.2 | E18: =C7 -> 0.65 | G18: From Salesman A1: | I18: =D18*E18/(D18*E18+D20*E20) -> 0.65 | K18: =C18 -> 0.65 | L18: =D18 -> 0.2 | M18: =K18*L18 -> 0.13 | N18: =M18/M21 -> 0.65
B20: Salesman A2 | C20: =C9 -> 0.35 | D20: =C13 -> 0.2 | E20: =1-E18 -> 0.35 | G20: From Salesman A2: | I20: =D20*E20/(D18*E18+D20*E20) -> 0.35 | K20: =C20 -> 0.35 | L20: =D20 -> 0.2 | M20: =K20*L20 -> 0.07 | N20: =M20/M21 -> 0.35
A21: ANALYSIS: | B21: On relative basis: the probability of the Bad event, coming from Salesman А2 [ | F21: =N20 -> 0.35 | G21: ] compared [ | H21: =N18 -> 0.65 | I21: ] from Good A1. | K21: =K18+K20 -> 1 | L21: To the new info given each event | M21: =SUM(M18:M20) -> 0.2 | N21: =N18+N20 -> 1 | P21: =M21*10+O21*1 -> 2
B22: There is a greater likelihood Bad event to be observed because outcome as [ | F22: =M20 -> 0.07 | G22: ] following [ | H22: =N20 -> 0.35 | I22: ] A2 Bad event could be a crash. | M22: Overall <probability of Bad event =
A24: CLOSING: | B24: 6
A26: Constructed using "Quantitative Methods for Business" (Fifth edition); David R. Anderson, University of Cincinnati, Dennis J. Sweeney, University of Cincinnati, Thomas A. Williams, Rochester Institute of Technology; Library of Congress Cataloging-in-Publication Data.
A28: COMMENTS: | B28: It is well known and certainly recommendable that to start an investment project, the investor (and his team making inside risk assessment) must be convinced, must believe in the good outcome, and he must act decisively, without any hesitation. Very often, this is reflected in a low assessment of the Default Risk Ratio (d--Factor) that is raising its real impact. In such cases we approach the above probability estimation, often called “what-if” analysis. It follows the High Qualified Audit, in this Risk Assessment program recognized as "Group D".
B31: Excerpts from the comments of our clients of this model: ". . . default risk assessment is the starting point which most frequently cause disputes with the lenders, very often ending with denial of funding, no matter what the finally stated reason was." Look at the picture below, which is the most popular example of visible illusion.
C34: We are looking out to the market and don’t see a big risk to become unable to pay back our debt. | K34: Who is right, when the lengths of the lines are equal? . . . "
C36: The lenders are only looking within themselves, see plenty of big risks, and talk only about it.
B38: In making a decision for new investments never believe and rely solely on: ① your intuition, based on long-term experience; ② suggestions of high level experts; and ③ good chance.
B39: Rely only on risk assessment and computing of prior and posterior probability of specific events of interest. Once you have them, return to the above approaches for the final decision.
B40: The assessment of Default Risk (d ) to an acceptable level is a key factor for the positive resolution of a loan application. The system, called OCFCS for short, which we recommend is an instrument that serves post factum an investment throughout the project providing permanent online information to the lender, insurer and to the investor.
A44: RECORD: | B44: PROJECT NAME | D44: QUALITY | F44: QUANTITY | H44: The event . . .
B45: (or Investor Name) | D45: AGENT A1 | E45: AGENT A2 | F45: AGENT A1
B46: =L2 -> Prefabricated Buildings and Halls steel structures | D46: 0.98 | E46: 0.95 | G46: 0.65 | H46: Agents distribute in their countries these percentages of KEM's products.
A48: Keep these h cells free for longer project name extension

Sheet Bayes5
A1: CHAPTER 1 | F1: DECEISION ANALYSES | P1: Name of Project
B2: POSTERIOR PROBABILITIES OF FIVE EVENTS | P2: ='Cap.Goods'!E3 -> Capital Goods and Services
A4: Background: | B4: Five mutually exclusive events following delivery of goods or services by Suppliers where one of the events must occur when new information
A5: Clean and Start | B5: from a sample, a special report, a product test, and so on, about it is received. Henceforth, you have to revise or update the prior probability values.
A6: Historical Info: | B6: Good quality event  ENTER | H6: Complete here the here Bad parts or services received from each supplier .
C7: QUALITY | G7: QUANTITY | I7: POSTERIOR PROBABILITY | K7: CONDITIONAL | M7: FINAL | O7: NOTES
C8: % Good | E8: % Bad | G8: % from | I8: that Bad event is: | K8: Joint Bad A1,2 ∩B | M8: for Ai
A9: Event A1 from: | B9: Supplier A1 (Subcontractor) | E9: =1-C9 -> 1 | I9: =100*E9*G9/($E$9*$G$9+$E$11*$G$11+$E$13*$G$13+$E$15*$G$15+$E$17*$G$17) -> 0 | K9: =100*G9*E9 -> 0 | M9: =K9/$K$19 -> 0
A11: Event A2 from: | B11: Supplier A2 (Subcontractor) | E11: =1-C11 -> 1 | I11: =100*E11*G11/($E$9*$G$9+$E$11*$G$11+$E$13*$G$13+$E$15*$G$15+$E$17*$G$17) -> 0 | K11: =100*G11*E11 -> 0 | M11: =K11/$K$19 -> 0
A13: Event A3 from: | B13: Supplier A3 (Subcontractor) | E13: =1-C13 -> 1 | I13: =100*E13*G13/($E$9*$G$9+$E$11*$G$11+$E$13*$G$13+$E$15*$G$15+$E$17*$G$17) -> 0 | K13: =100*G13*E13 -> 0 | M13: =K13/$K$19 -> 0
A15: Event A4 from: | B15: Supplier A4 (Subcontractor) | E15: =1-C15 -> 1 | I15: =100*E15*G15/($E$9*$G$9+$E$11*$G$11+$E$13*$G$13+$E$15*$G$15+$E$17*$G$17) -> 0 | K15: =100*G15*E15 -> 0 | M15: =K15/$K$19 -> 0
A17: Event A5 from: | B17: Supplier A5 (Subcontractor) | E17: =1-C17 -> 1 | G17: =1-SUM(G9:G15) -> 1 | I17: =100*E17*G17/($E$9*$G$9+$E$11*$G$11+$E$13*$G$13+$E$15*$G$15+$E$17*$G$17) -> 100 | K17: =100*G17*E17 -> 100 | M17: =K17/$K$19 -> 1
A19: See Comments | K19: =SUM(K9:K18) -> 100 | M19: =SUM(M9:M18) -> 1
K20: Overall<probability of happen Bad event
